[Event "*** Titled Tuesday 3|2 Blitz"]
[Site "Chess.com"]
[Date "2016.06.07"]
[Round "3"]
[White "Usurpov"]
[Black "alturas_pacificas"]
[Result "0-1"]
[WhiteElo "2347"]
[BlackElo "2181"]
[TimeControl "180+2"]
[EndTime "11:36:45 PDT"]
[Termination "alturas_pacificas won by resignation"]

1. e4 {[%clk 0:03:01.9]} 1... g6 {[%clk 0:03:00.7]} 2. d4 {[%clk 0:03:02]} 2...
Bg7 {[%clk 0:03:01.8]} 3. Nc3 {[%clk 0:03:02.9]} 3... d6 {[%clk 0:03:02.7]} 4.
f4 {[%clk 0:03:02.7]} 4... Nf6 {[%clk 0:03:01.7]} 5. Nf3 {[%clk 0:03:03.6]} 5...
O-O {[%clk 0:03:01.7]} 6. e5 {[%clk 0:03:04]} 6... dxe5 {[%clk 0:03:01.5]} 7.
dxe5 {[%clk 0:03:05]} 7... Qxd1+ {[%clk 0:03:01.5]} 8. Kxd1 {[%clk 0:03:06.9]}
8... Ng4 {[%clk 0:03:01.4]} 9. Ke1 {[%clk 0:03:05]} 9... c6 {[%clk 0:02:45.2]}
10. Bc4 {[%clk 0:03:00.1]} 10... a5 {[%clk 0:02:27.6]} 11. a3 {[%clk 0:02:02.7]}
11... Na6 {[%clk 0:02:27.9]} 12. h3 {[%clk 0:02:01.2]} 12... Nh6 {[%clk
0:02:28.2]} 13. Be3 {[%clk 0:02:01.1]} 13... b5 {[%clk 0:02:14.6]} 14. Bd3
{[%clk 0:01:53.7]} 14... Bf5 {[%clk 0:01:59.6]} 15. Ne4 {[%clk 0:01:50.3]} 15...
f6 {[%clk 0:01:48.5]} 16. g4 {[%clk 0:01:42.7]} 16... Bd7 {[%clk 0:01:37.7]} 17.
Rd1 {[%clk 0:01:03.4]} 17... fxe5 {[%clk 0:01:33.1]} 18. Nxe5 {[%clk 0:00:57.4]}
18... Be8 {[%clk 0:01:16.7]} 19. Ke2 {[%clk 0:00:36.6]} 19... Nf7 {[%clk
0:01:17.1]} 20. Nf3 {[%clk 0:00:34.3]} 20... Bxb2 {[%clk 0:01:15.8]} 21. c4
{[%clk 0:00:26.9]} 21... Bxa3 {[%clk 0:01:11.3]} 22. cxb5 {[%clk 0:00:27.6]}
22... cxb5 {[%clk 0:01:12.1]} 23. h4 {[%clk 0:00:26.1]} 23... Nd6 {[%clk
0:01:03.8]} 24. Neg5 {[%clk 0:00:22.1]} 24... Nc5 {[%clk 0:00:57.3]} 25. Bb1
{[%clk 0:00:16.6]} 25... Nc4 {[%clk 0:00:50.6]} 26. h5 {[%clk 0:00:13.6]} 26...
Nxe3 {[%clk 0:00:49.4]} 27. Kxe3 {[%clk 0:00:13.8]} 27... Nb3 {[%clk 0:00:35.9]}
28. Ba2 {[%clk 0:00:11.1]} 28... a4 {[%clk 0:00:33.1]} 29. hxg6 {[%clk
0:00:10.7]} 29... Bxg6 {[%clk 0:00:32.5]} 30. f5 {[%clk 0:00:11.5]} 30... Bc5+
{[%clk 0:00:31.7]} 31. Ke2 {[%clk 0:00:10.7]} 31... Bf7 {[%clk 0:00:20.4]} 32.
Nxh7 {[%clk 0:00:07.1]} 32... Bc4+ {[%clk 0:00:21.2]} 33. Ke1 {[%clk 0:00:08.6]}
33... Rfd8 {[%clk 0:00:19.7]} 34. Nhg5 {[%clk 0:00:08.3]} 34... Rxd1+ {[%clk
0:00:19.7]} 35. Kxd1 {[%clk 0:00:10.2]} 35... Rd8+ {[%clk 0:00:21.1]} 36. Ke1
{[%clk 0:00:10.7]} 36... Rd4 {[%clk 0:00:15.1]} 37. Nxd4 {[%clk 0:00:11.2]}
37... Bxd4 {[%clk 0:00:16.1]} 38. Nf3 {[%clk 0:00:11.3]} 38... Bc3+ {[%clk
0:00:16.2]} 39. Kf2 {[%clk 0:00:11.6]} 39... Bb4 {[%clk 0:00:14.9]} 40. Rc1
{[%clk 0:00:12.6]} 40... Bc5+ {[%clk 0:00:15.8]} 41. Kg3 {[%clk 0:00:13.3]}
41... Nxc1 {[%clk 0:00:17.3]} 0-1

[Event "*** Titled Tuesday 3|2 Blitz"]
[Site "Chess.com"]
[Date "2016.06.07"]
[Round "3"]
[White "AndreyOstrovskiy"]
[Black "TomsKantans"]
[Result "0-1"]
[WhiteElo "2434"]
[BlackElo "2459"]
[TimeControl "180+2"]
[EndTime "11:36:50 PDT"]
[Termination "TomsKantans won on time"]

1. e4 {[%clk 0:03:01.9]} 1... c5 {[%clk 0:02:52.8]} 2. Nf3 {[%clk 0:03:01.9]}
2... Nf6 {[%clk 0:02:53.8]} 3. d3 {[%clk 0:03:01.8]} 3... Nc6 {[%clk 0:02:54.3]}
4. g3 {[%clk 0:03:02.1]} 4... g6 {[%clk 0:02:53.6]} 5. Bg2 {[%clk 0:03:02.5]}
5... Bg7 {[%clk 0:02:52.8]} 6. O-O {[%clk 0:03:03.4]} 6... O-O {[%clk
0:02:46.9]} 7. Re1 {[%clk 0:02:47.9]} 7... e5 {[%clk 0:02:40.1]} 8. c3 {[%clk
0:02:44.5]} 8... h6 {[%clk 0:02:37.1]} 9. Nbd2 {[%clk 0:02:43.7]} 9... Re8
{[%clk 0:02:17.5]} 10. a4 {[%clk 0:02:39.7]} 10... d5 {[%clk 0:02:02.9]} 11. Qc2
{[%clk 0:02:25.8]} 11... Be6 {[%clk 0:01:52.6]} 12. exd5 {[%clk 0:02:02.7]}
12... Nxd5 {[%clk 0:01:52.6]} 13. Nc4 {[%clk 0:02:03.3]} 13... Qc7 {[%clk
0:01:52.1]} 14. h4 {[%clk 0:01:55]} 14... Rad8 {[%clk 0:01:49.3]} 15. h5 {[%clk
0:01:55.2]} 15... g5 {[%clk 0:01:45.5]} 16. Nfd2 {[%clk 0:01:30.1]} 16... f5
{[%clk 0:01:41.5]} 17. Nf3 {[%clk 0:01:27.7]} 17... Bf7 {[%clk 0:01:36.4]} 18.
Ne3 {[%clk 0:01:19.2]} 18... Nxe3 {[%clk 0:01:10.8]} 19. Bxe3 {[%clk 0:01:19.5]}
19... b6 {[%clk 0:01:12.2]} 20. g4 {[%clk 0:01:18.9]} 20... fxg4 {[%clk
0:01:11]} 21. Nh2 {[%clk 0:01:15]} 21... Bxh5 {[%clk 0:01:11.6]} 22. Nf1 {[%clk
0:01:12]} 22... Ne7 {[%clk 0:01:08.7]} 23. a5 {[%clk 0:01:09.6]} 23... Bg6
{[%clk 0:01:05.9]} 24. axb6 {[%clk 0:01:07.4]} 24... axb6 {[%clk 0:01:07.8]} 25.
Be4 {[%clk 0:01:04.3]} 25... Rf8 {[%clk 0:00:49.7]} 26. Ng3 {[%clk 0:01:05.1]}
26... Qd6 {[%clk 0:00:33.9]} 27. Ra7 {[%clk 0:01:01.7]} 27... Nd5 {[%clk
0:00:34.7]} 28. Qb3 {[%clk 0:00:54.4]} 28... Kh8 {[%clk 0:00:34.6]} 29. Rb7
{[%clk 0:00:36.2]} 29... Nxe3 {[%clk 0:00:20.1]} 30. Rxe3 {[%clk 0:00:36.8]}
30... Rb8 {[%clk 0:00:20.7]} 31. Ra7 {[%clk 0:00:30.6]} 31... h5 {[%clk
0:00:20.5]} 32. Bxg6 {[%clk 0:00:23.8]} 32... Qxg6 {[%clk 0:00:22.4]} 33. Qd5
{[%clk 0:00:24.7]} 33... h4 {[%clk 0:00:22.6]} 34. Ne4 {[%clk 0:00:25.7]} 34...
Rbd8 {[%clk 0:00:17.8]} 35. Qb7 {[%clk 0:00:26.2]} 35... c4 {[%clk 0:00:17.8]}
36. dxc4 {[%clk 0:00:24.7]} 36... Rd1+ {[%clk 0:00:18.4]} 37. Kg2 {[%clk
0:00:24.6]} 37... g3 {[%clk 0:00:12]} 0-1

[Event "*** Titled Tuesday 3|2 Blitz"]
[Site "Chess.com"]
[Date "2016.06.07"]
[Round "3"]
[White "yopino"]
[Black "Wolverine_master"]
[Result "1-0"]
[WhiteElo "2227"]
[BlackElo "2086"]
[TimeControl "180+2"]
[EndTime "11:36:58 PDT"]
[Termination "yopino won by resignation"]

1. e4 {[%clk 0:03:01.9]} 1... e5 {[%clk 0:02:48.1]} 2. Nf3 {[%clk 0:03:02.2]}
2... Nc6 {[%clk 0:02:49.2]} 3. d4 {[%clk 0:03:01.7]} 3... exd4 {[%clk 0:02:50]}
4. Nxd4 {[%clk 0:03:03.6]} 4... Bc5 {[%clk 0:02:50.2]} 5. Nxc6 {[%clk
0:03:02.4]} 5... Qf6 {[%clk 0:02:51.1]} 6. Qf3 {[%clk 0:03:02.1]} 6... Qxf3
{[%clk 0:02:51.7]} 7. gxf3 {[%clk 0:03:01.8]} 7... bxc6 {[%clk 0:02:52.8]} 8.
Be3 {[%clk 0:02:59]} 8... Bb6 {[%clk 0:02:52.1]} 9. c4 {[%clk 0:02:59.2]} 9...
Bxe3 {[%clk 0:02:49.1]} 10. fxe3 {[%clk 0:03:01.1]} 10... Ne7 {[%clk 0:02:50]}
11. Nc3 {[%clk 0:02:59.5]} 11... Rb8 {[%clk 0:02:47.8]} 12. O-O-O {[%clk
0:02:59.1]} 12... d6 {[%clk 0:02:47.2]} 13. c5 {[%clk 0:02:56.9]} 13... d5
{[%clk 0:02:45.6]} 14. exd5 {[%clk 0:02:56.1]} 14... cxd5 {[%clk 0:02:45.6]} 15.
Nxd5 {[%clk 0:02:54.1]} 15... Nxd5 {[%clk 0:02:46.6]} 16. Rxd5 {[%clk
0:02:55.2]} 16... Be6 {[%clk 0:02:48.1]} 17. Rd4 {[%clk 0:02:31.6]} 17... Bxa2
{[%clk 0:02:45.7]} 18. Ra4 {[%clk 0:02:32.1]} 18... Bd5 {[%clk 0:02:43.1]} 19.
e4 {[%clk 0:02:32.2]} 19... Be6 {[%clk 0:02:35.2]} 20. Rxa7 {[%clk 0:02:32.7]}
20... c6 {[%clk 0:02:17.3]} 21. Rc7 {[%clk 0:02:15.7]} 21... O-O {[%clk
0:02:15.3]} 22. Rxc6 {[%clk 0:02:15.4]} 22... Rb3 {[%clk 0:02:16.2]} 23. Be2
{[%clk 0:01:52.3]} 23... Rfb8 {[%clk 0:02:16]} 24. Rb6 {[%clk 0:01:53.3]} 24...
R8xb6 {[%clk 0:01:41.5]} 25. cxb6 {[%clk 0:01:55.2]} 25... Rxb6 {[%clk
0:01:42.9]} 26. Rd1 {[%clk 0:01:52.7]} 26... Kf8 {[%clk 0:01:43.8]} 27. Rd4
{[%clk 0:01:51.4]} 27... Ke7 {[%clk 0:01:42.8]} 28. b4 {[%clk 0:01:50.4]} 28...
g5 {[%clk 0:01:34.2]} 29. Kb2 {[%clk 0:01:47.8]} 29... Kf6 {[%clk 0:01:08.5]}
30. b5 {[%clk 0:01:42.7]} 30... Ke5 {[%clk 0:01:09.3]} 31. Ra4 {[%clk
0:01:42.2]} 31... Kf4 {[%clk 0:01:06.1]} 32. Ra3 {[%clk 0:01:31.1]} 32... g4
{[%clk 0:00:25.9]} 33. fxg4 {[%clk 0:01:31.5]} 33... Bxg4 {[%clk 0:00:26]} 34.
Bd3 {[%clk 0:01:32.1]} 34... Ke5 {[%clk 0:00:05.5]} 35. Kc3 {[%clk 0:01:31.2]}
35... Bf3 {[%clk 0:00:06.8]} 36. Ra4 {[%clk 0:01:00.7]} 36... h5 {[%clk
0:00:07.4]} 37. Rd4 {[%clk 0:00:54.3]} 37... h4 {[%clk 0:00:05.6]} 38. Rd5+
{[%clk 0:00:54.8]} 38... Kf4 {[%clk 0:00:06.2]} 39. Kd4 {[%clk 0:00:53.5]} 39...
Bg2 {[%clk 0:00:04]} 40. Rf5+ {[%clk 0:00:51.4]} 40... Kg4 {[%clk 0:00:03.8]}
41. Kc5 {[%clk 0:00:45.7]} 41... Rb8 {[%clk 0:00:02.8]} 42. Rxf7 {[%clk
0:00:38.7]} 42... Kh3 {[%clk 0:00:03.7]} 43. Rh7 {[%clk 0:00:39.2]} 43... Kxh2
{[%clk 0:00:03]} 44. Rxh4+ {[%clk 0:00:38.9]} 44... Kg3 {[%clk 0:00:04.7]} 45.
Rh7 {[%clk 0:00:36.5]} 45... Kf4 {[%clk 0:00:06.6]} 46. b6 {[%clk 0:00:33.9]}
46... Bxe4 {[%clk 0:00:08]} 47. Bxe4 {[%clk 0:00:35.1]} 47... Kxe4 {[%clk
0:00:09.9]} 48. b7 {[%clk 0:00:35.8]} 48... Ke5 {[%clk 0:00:10.6]} 49. Kc6
{[%clk 0:00:36.9]} 49... Ke6 {[%clk 0:00:10.3]} 50. Kc7 {[%clk 0:00:38]} 1-0

[Event "*** Titled Tuesday 3|2 Blitz"]
[Site "Chess.com"]
[Date "2016.06.07"]
[Round "3"]
[White "platy3"]
[Black "Boryboy"]
[Result "1/2-1/2"]
[WhiteElo "2685"]
[BlackElo "2542"]
[TimeControl "180+2"]
[EndTime "11:37:21 PDT"]
[Termination "Game drawn by agreement"]

1. e4 {[%clk 0:03:01.9]} 1... e6 {[%clk 0:02:58.7]} 2. d4 {[%clk 0:03:02.3]}
2... d5 {[%clk 0:02:59.8]} 3. Nd2 {[%clk 0:03:03.4]} 3... Be7 {[%clk 0:02:56.5]}
4. Ngf3 {[%clk 0:02:59.1]} 4... Nf6 {[%clk 0:02:57.1]} 5. e5 {[%clk 0:03:00.3]}
5... Nfd7 {[%clk 0:02:58.3]} 6. Bd3 {[%clk 0:03:02]} 6... c5 {[%clk 0:02:58.9]}
7. c3 {[%clk 0:03:03.6]} 7... Nc6 {[%clk 0:02:58.1]} 8. O-O {[%clk 0:03:04.8]}
8... g5 {[%clk 0:02:55.1]} 9. dxc5 {[%clk 0:03:05.5]} 9... Nxc5 {[%clk
0:02:56.2]} 10. Bb5 {[%clk 0:03:03.7]} 10... Nd7 {[%clk 0:02:56.2]} 11. Re1
{[%clk 0:03:00.8]} 11... Qc7 {[%clk 0:02:52.1]} 12. Nd4 {[%clk 0:02:48.8]} 12...
a6 {[%clk 0:02:24.9]} 13. Ba4 {[%clk 0:02:35.5]} 13... Nc5 {[%clk 0:02:10.9]}
14. Bc2 {[%clk 0:02:29.8]} 14... Nxe5 {[%clk 0:02:07.8]} 15. Qh5 {[%clk
0:02:23.9]} 15... Ncd3 {[%clk 0:01:51.1]} 16. Bxd3 {[%clk 0:02:06.8]} 16... Nxd3
{[%clk 0:01:53]} 17. Re3 {[%clk 0:01:59.5]} 17... Nf4 {[%clk 0:01:50.8]} 18. Qh6
{[%clk 0:02:00.5]} 18... Bd7 {[%clk 0:01:42.5]} 19. N2f3 {[%clk 0:01:48.8]}
19... O-O-O {[%clk 0:01:39.1]} 20. Ne5 {[%clk 0:01:42.8]} 20... Be8 {[%clk
0:01:36]} 21. g3 {[%clk 0:01:43.8]} 21... Bf8 {[%clk 0:00:44.9]} 22. Qf6 {[%clk
0:01:28.9]} 22... Rg8 {[%clk 0:00:45.7]} 23. Kf1 {[%clk 0:01:06.5]} 23... Bg7
{[%clk 0:00:20.4]} 24. Qxg5 {[%clk 0:01:07.7]} 24... Bxe5 {[%clk 0:00:18.3]} 25.
Qxe5 {[%clk 0:01:05.1]} 25... Qxe5 {[%clk 0:00:15.4]} 26. Rxe5 {[%clk 0:01:07]}
26... Nd3 {[%clk 0:00:16.1]} 27. Rh5 {[%clk 0:01:05.5]} 27... e5 {[%clk
0:00:15.1]} 28. Nf5 {[%clk 0:01:04.1]} 28... Kb8 {[%clk 0:00:11.1]} 29. Rxh7
{[%clk 0:01:01.7]} 29... Bb5 {[%clk 0:00:11.6]} 30. Kg2 {[%clk 0:01:00.1]} 30...
f6 {[%clk 0:00:11.7]} 31. Be3 {[%clk 0:00:54]} 31... Rge8 {[%clk 0:00:13]} 32.
b3 {[%clk 0:00:50.1]} 32... Bc6 {[%clk 0:00:12.2]} 33. Kg1 {[%clk 0:00:50.3]}
33... d4 {[%clk 0:00:13.7]} 34. cxd4 {[%clk 0:00:51.4]} 34... Be4 {[%clk
0:00:15.1]} 35. Rh5 {[%clk 0:00:50.8]} 35... exd4 {[%clk 0:00:16.5]} 36. Nxd4
{[%clk 0:00:51]} 36... Ne5 {[%clk 0:00:18]} 37. Ne2 {[%clk 0:00:22.6]} 37... Bf3
{[%clk 0:00:12.1]} 38. Nf4 {[%clk 0:00:23.9]} 38... Bxh5 {[%clk 0:00:11.2]} 39.
Nxh5 {[%clk 0:00:25.8]} 39... Re6 {[%clk 0:00:11.6]} 40. Bf4 {[%clk 0:00:24.2]}
40... Ka7 {[%clk 0:00:11.6]} 41. Nxf6 {[%clk 0:00:19.4]} 41... Nf3+ {[%clk
0:00:11.5]} 42. Kg2 {[%clk 0:00:20.9]} 42... Ne1+ {[%clk 0:00:12.8]} 43. Kf1
{[%clk 0:00:22.1]} 43... Nc2 {[%clk 0:00:14.1]} 44. Rc1 {[%clk 0:00:21.7]} 44...
Nb4 {[%clk 0:00:13.1]} 45. Be3+ {[%clk 0:00:22.3]} 45... Ka8 {[%clk 0:00:13.9]}
1/2-1/2

[Event "*** Titled Tuesday 3|2 Blitz"]
[Site "Chess.com"]
[Date "2016.06.07"]
[Round "3"]
[White "Ksenia_Legenko"]
[Black "saraswathii"]
[Result "0-1"]
[WhiteElo "2016"]
[BlackElo "1935"]
[TimeControl "180+2"]
[EndTime "11:37:50 PDT"]
[Termination "saraswathii won by resignation"]

1. d4 {[%clk 0:03:00.3]} 1... Nc6 {[%clk 0:03:00.1]} 2. c4 {[%clk 0:02:57.8]}
2... e5 {[%clk 0:03:00.5]} 3. e3 {[%clk 0:02:52.7]} 3... Nf6 {[%clk 0:02:58]} 4.
Nc3 {[%clk 0:02:53.2]} 4... d6 {[%clk 0:02:54.4]} 5. Nf3 {[%clk 0:02:36.6]} 5...
e4 {[%clk 0:02:33.8]} 6. Ng5 {[%clk 0:02:31.4]} 6... Bf5 {[%clk 0:02:29.3]} 7.
Qb3 {[%clk 0:02:07.5]} 7... Rb8 {[%clk 0:02:28.5]} 8. Qa4 {[%clk 0:02:00.2]}
8... Qd7 {[%clk 0:02:19.6]} 9. d5 {[%clk 0:01:58]} 9... Ne5 {[%clk 0:02:04.3]}
10. Qxd7+ {[%clk 0:01:57.6]} 10... Nexd7 {[%clk 0:02:02.4]} 11. Nb5 {[%clk
0:01:50.2]} 11... a6 {[%clk 0:01:55.4]} 12. Nxc7+ {[%clk 0:01:45]} 12... Ke7
{[%clk 0:01:54.8]} 13. c5 {[%clk 0:01:37.2]} 13... Nxc5 {[%clk 0:01:45]} 14. b4
{[%clk 0:01:33.6]} 14... Ncd7 {[%clk 0:01:41.9]} 15. b5 {[%clk 0:01:33]} 15...
Rc8 {[%clk 0:01:38.4]} 16. bxa6 {[%clk 0:01:23.6]} 16... Rxc7 {[%clk 0:01:35.9]}
17. a7 {[%clk 0:01:20.3]} 17... Rc8 {[%clk 0:01:34.1]} 18. Bb2 {[%clk
0:01:14.9]} 18... Ra8 {[%clk 0:01:29.2]} 19. Bd4 {[%clk 0:01:15.3]} 19... b6
{[%clk 0:01:15.2]} 20. Be2 {[%clk 0:01:10]} 20... Rxa7 {[%clk 0:01:13]} 21. O-O
{[%clk 0:01:10.7]} 21... h6 {[%clk 0:01:09.3]} 22. Nh3 {[%clk 0:01:11.5]} 22...
Bxh3 {[%clk 0:01:05.9]} 23. gxh3 {[%clk 0:01:12.6]} 23... Nxd5 {[%clk
0:01:00.9]} 24. Rfc1 {[%clk 0:01:08.6]} 24... Nc5 {[%clk 0:01:00.8]} 25. Bc4
{[%clk 0:01:05.8]} 25... Nc7 {[%clk 0:00:49.4]} 26. Rab1 {[%clk 0:01:05.1]}
26... Rb7 {[%clk 0:00:43.6]} 27. Be2 {[%clk 0:00:56.3]} 27... N7e6 {[%clk
0:00:42.1]} 28. Bc3 {[%clk 0:00:50.3]} 28... Rg8 {[%clk 0:00:34.8]} 29. a4
{[%clk 0:00:50.4]} 29... Nxa4 {[%clk 0:00:32.9]} 30. Bb4 {[%clk 0:00:38.8]}
30... Nac5 {[%clk 0:00:32.7]} 31. Bc4 {[%clk 0:00:38.1]} 31... Kd7 {[%clk
0:00:26.7]} 32. Bd5 {[%clk 0:00:39]} 32... Rb8 {[%clk 0:00:26.5]} 33. Bxe6+
{[%clk 0:00:33.2]} 33... fxe6 {[%clk 0:00:25]} 34. Kg2 {[%clk 0:00:32.2]} 34...
Nd3 {[%clk 0:00:25.5]} 35. Rc4 {[%clk 0:00:30]} 35... Nxb4 {[%clk 0:00:25.9]}
36. Rcxb4 {[%clk 0:00:31.3]} 36... d5 {[%clk 0:00:26.8]} 37. Rxb6 {[%clk
0:00:32.3]} 37... Rxb6 {[%clk 0:00:28.7]} 38. Rxb6 {[%clk 0:00:33.2]} 38... Bd6
{[%clk 0:00:30.3]} 39. Ra6 {[%clk 0:00:33.7]} 39... Rc8 {[%clk 0:00:29.8]} 40.
Ra2 {[%clk 0:00:34.4]} 40... Rc3 {[%clk 0:00:28.1]} 41. Ra7+ {[%clk 0:00:34.8]}
41... Bc7 {[%clk 0:00:29.1]} 42. Ra2 {[%clk 0:00:36.4]} 42... e5 {[%clk
0:00:29]} 43. Rd2 {[%clk 0:00:36.9]} 43... Ke6 {[%clk 0:00:29.4]} 44. Ra2 {[%clk
0:00:37.2]} 44... d4 {[%clk 0:00:29.8]} 45. exd4 {[%clk 0:00:38.4]} 45... exd4
{[%clk 0:00:30.7]} 46. Rb2 {[%clk 0:00:39.1]} 46... Kf5 {[%clk 0:00:30.3]} 47.
Ra2 {[%clk 0:00:39.4]} 47... d3 {[%clk 0:00:31.2]} 48. Rb2 {[%clk 0:00:37.5]}
48... Rc2 {[%clk 0:00:32.1]} 49. Rb5+ {[%clk 0:00:38.4]} 49... Be5 {[%clk
0:00:31.9]} 50. Rd5 {[%clk 0:00:38.6]} 50... Ke6 {[%clk 0:00:30.3]} 51. Rd8
{[%clk 0:00:39.2]} 51... d2 {[%clk 0:00:30.1]} 52. h4 {[%clk 0:00:35.7]} 52...
Bd6 {[%clk 0:00:30.7]} 53. Re8+ {[%clk 0:00:36]} 53... Kd5 {[%clk 0:00:31.4]}
0-1

[Event "*** Titled Tuesday 3|2 Blitz"]
[Site "Chess.com"]
[Date "2016.06.07"]
[Round "3"]
[White "Iball95"]
[Black "FairChess_on_YouTube"]
[Result "0-1"]
[WhiteElo "2468"]
[BlackElo "2707"]
[TimeControl "180+2"]
[EndTime "11:37:54 PDT"]
[Termination "FairChess_on_YouTube won by resignation"]

1. e4 {[%clk 0:02:59.2]} 1... c6 {[%clk 0:03:00.6]} 2. d4 {[%clk 0:02:59.9]}
2... d5 {[%clk 0:03:02]} 3. Nd2 {[%clk 0:03:01.5]} 3... dxe4 {[%clk 0:03:02.5]}
4. Nxe4 {[%clk 0:03:03.4]} 4... Bf5 {[%clk 0:03:02.8]} 5. Nc5 {[%clk 0:03:03.5]}
5... b6 {[%clk 0:02:59.1]} 6. Nb3 {[%clk 0:03:04.4]} 6... Nf6 {[%clk 0:02:58.9]}
7. Nf3 {[%clk 0:03:05.1]} 7... e6 {[%clk 0:02:58.5]} 8. g3 {[%clk 0:03:06.3]}
8... a5 {[%clk 0:02:57.3]} 9. a3 {[%clk 0:03:01.3]} 9... a4 {[%clk 0:02:37.4]}
10. Nbd2 {[%clk 0:03:01.3]} 10... b5 {[%clk 0:02:30.1]} 11. Bg2 {[%clk
0:03:00.4]} 11... Be7 {[%clk 0:02:29.6]} 12. O-O {[%clk 0:03:01.4]} 12... Nd5
{[%clk 0:02:27.1]} 13. c3 {[%clk 0:02:56.8]} 13... Nd7 {[%clk 0:02:25.3]} 14.
Re1 {[%clk 0:02:58]} 14... O-O {[%clk 0:02:25.1]} 15. h3 {[%clk 0:02:54.4]}
15... h6 {[%clk 0:02:25.7]} 16. Ne5 {[%clk 0:02:43.3]} 16... Nxe5 {[%clk
0:02:23.9]} 17. Rxe5 {[%clk 0:02:45.2]} 17... Bf6 {[%clk 0:02:16.4]} 18. Re1
{[%clk 0:02:41.2]} 18... Qc7 {[%clk 0:02:16.1]} 19. Ne4 {[%clk 0:02:26.8]} 19...
Be7 {[%clk 0:02:00.8]} 20. Qf3 {[%clk 0:02:16]} 20... Rad8 {[%clk 0:01:55.6]}
21. Qe2 {[%clk 0:02:08.5]} 21... Rfe8 {[%clk 0:01:51.4]} 22. Bd2 {[%clk
0:02:08.6]} 22... Bf8 {[%clk 0:01:50.6]} 23. Qf3 {[%clk 0:01:32.8]} 23... c5
{[%clk 0:01:43.9]} 24. Nxc5 {[%clk 0:01:30.1]} 24... Bxc5 {[%clk 0:01:44.4]} 25.
dxc5 {[%clk 0:01:32]} 25... Qxc5 {[%clk 0:01:44.5]} 26. Bf4 {[%clk 0:01:12.7]}
26... Bc2 {[%clk 0:01:17.1]} 27. Be5 {[%clk 0:01:10.8]} 27... f6 {[%clk
0:01:05.3]} 28. Bd4 {[%clk 0:01:11.4]} 28... Qc4 {[%clk 0:01:04.1]} 29. Rac1
{[%clk 0:01:07.3]} 29... Qb3 {[%clk 0:00:58.6]} 30. Qe2 {[%clk 0:01:01.5]} 30...
Bh7 {[%clk 0:00:51.9]} 31. Bf1 {[%clk 0:01:02.3]} 31... Rb8 {[%clk 0:00:41.4]}
32. Rcd1 {[%clk 0:01:03.1]} 32... Bf5 {[%clk 0:00:32]} 33. Bg2 {[%clk 0:00:58]}
33... Rbd8 {[%clk 0:00:31.6]} 34. Bf1 {[%clk 0:00:58.8]} 34... Rb8 {[%clk
0:00:30.6]} 35. Bg2 {[%clk 0:01:00.2]} 35... Kh7 {[%clk 0:00:26.9]} 36. h4
{[%clk 0:00:54.5]} 36... Qc4 {[%clk 0:00:20.4]} 37. Qf3 {[%clk 0:00:53]} 37...
Kh8 {[%clk 0:00:17.8]} 38. Rd2 {[%clk 0:00:47.7]} 38... Ne7 {[%clk 0:00:16.5]}
39. g4 {[%clk 0:00:36.5]} 39... Bh7 {[%clk 0:00:17.2]} 40. Qe2 {[%clk
0:00:26.5]} 40... e5 {[%clk 0:00:17]} 41. Ba7 {[%clk 0:00:26.3]} 41... Rbd8
{[%clk 0:00:16.1]} 42. Bb6 {[%clk 0:00:20.1]} 42... Rxd2 {[%clk 0:00:15.3]} 43.
Qxd2 {[%clk 0:00:22]} 43... Qxg4 {[%clk 0:00:16.5]} 44. Qe2 {[%clk 0:00:19.4]}
44... Qxe2 {[%clk 0:00:15.7]} 45. Rxe2 {[%clk 0:00:21.3]} 45... Bd3 {[%clk
0:00:14.1]} 46. Rd2 {[%clk 0:00:22.3]} 46... e4 {[%clk 0:00:15.7]} 47. f3 {[%clk
0:00:22.2]} 47... f5 {[%clk 0:00:17.1]} 48. fxe4 {[%clk 0:00:23.3]} 48... fxe4
{[%clk 0:00:19]} 49. Bd4 {[%clk 0:00:23.1]} 49... Nf5 {[%clk 0:00:19.3]} 50. Bf2
{[%clk 0:00:22.1]} 50... Bc4 {[%clk 0:00:17.9]} 51. Rd1 {[%clk 0:00:19.7]} 51...
e3 {[%clk 0:00:19.1]} 52. Be1 {[%clk 0:00:21]} 52... e2 {[%clk 0:00:20.3]} 53.
Rd7 {[%clk 0:00:21.8]} 53... Ne3 {[%clk 0:00:21.5]} 54. Bh3 {[%clk 0:00:22.2]}
54... Nc2 {[%clk 0:00:21.4]} 55. Bd2 {[%clk 0:00:14.6]} 55... e1=Q+ {[%clk
0:00:21.8]} 56. Bxe1 {[%clk 0:00:16.2]} 56... Nxe1 {[%clk 0:00:23.4]} 57. Kf2
{[%clk 0:00:17.9]} 57... Nd3+ {[%clk 0:00:23.4]} 58. Kf3 {[%clk 0:00:19.5]}
58... Ne5+ {[%clk 0:00:23.9]} 0-1